bitfinex-derivatives/quotes_BTCF0:USTF0_20250329
["timestamp","ask_amount","ask_price","bid_price","bid_amount"]
[1743249484263,0.50060001,82260.0,82259.0,0.9965255]
[1743249485169,0.62222411,82260.0,82259.0,0.9965255]
[1743249485865,0.50060001,82260.0,82259.0,0.9965255]
[1743249486253,0.62222411,82260.0,82259.0,0.9965255]
[1743249487361,0.62222411,82260.0,82259.0,0.9945255]
[1743249487557,0.62222411,82260.0,82259.0,0.9965255]
[1743249488957,0.62222411,82260.0,82259.0,0.6357255]
[1743249489567,0.50060001,82260.0,82259.0,0.6357255]
[1743249490661,0.50060001,82260.0,82259.0,0.6347255]
[1743249490863,0.50060001,82260.0,82259.0,0.6357255]
[1743249491867,0.62222411,82260.0,82259.0,0.6357255]
[1743249493760,0.62222411,82260.0,82259.0,0.6347255]
[1743249493957,0.62222411,82260.0,82259.0,0.6357255]
[1743249494159,0.62222411,82260.0,82259.0,0.9965255]
[1743249495765,0.50060001,82260.0,82259.0,0.9965255]
[1743249496163,0.50060001,82260.0,82259.0,0.9945255]
[1743249496368,0.50060001,82260.0,82259.0,0.9965255]
[1743249496974,0.62222411,82260.0,82259.0,0.9965255]
[1743249497358,0.62222411,82260.0,82259.0,0.9955255]
[1743249497562,0.62222411,82260.0,82259.0,0.6357255]
[1743249497774,0.62222411,82260.0,82259.0,0.9965255]
[1743249501064,0.50060001,82260.0,82259.0,0.9965255]
[1743249501260,0.0004,82276.0,82267.0,0.1216137]
[1743249501572,0.10823466,82268.0,82267.0,0.4830937]
[1743249501964,0.10707466,82268.0,82267.0,0.4830937]
[1743249502166,0.10707466,82268.0,82267.0,1.00518863]
[1743249504078,0.10707466,82268.0,82267.0,0.64438863]
[1743249504270,0.10819467,82268.0,82267.0,0.64438863]
[1743249504573,0.10819467,82268.0,82267.0,1.36598863]
[1743249504770,0.10707466,82268.0,82267.0,1.36598863]
[1743249504972,0.0004,82276.0,82272.0,0.060803]
[1743249505178,0.37480311,82276.0,82275.0,0.4824019]
[1743249505475,0.37480311,82276.0,82275.0,0.4830419]
[1743249506071,0.37680311,82276.0,82275.0,0.4830419]
[1743249506477,0.25520001,82276.0,82275.0,0.4830419]
[1743249506771,0.25720001,82276.0,82275.0,0.4830419]
[1743249507178,0.50070001,82276.0,82275.0,0.4830419]
[1743249507373,0.50070001,82276.0,82275.0,0.1222419]
[1743249507672,0.50070001,82276.0,82275.0,0.4830419]
[1743249509369,0.62230041,82276.0,82275.0,0.4830419]
[1743249510866,0.50070001,82276.0,82275.0,0.4830419]
[1743249511167,0.62230041,82276.0,82275.0,0.4830419]
[1743249514187,0.00560001,82276.0,82275.0,0.4830419]
[1743249514376,0.0044,82276.0,82275.0,0.4830419]
[1743249514976,0.0044,82276.0,82275.0,0.9692419]
[1743249515177,0.00552001,82276.0,82275.0,0.9692419]
[1743249515673,0.0044,82276.0,82275.0,0.9692419]
[1743249517282,0.0044,82276.0,82275.0,1.1186419]
[1743249517674,0.00552001,82276.0,82275.0,1.1186419]
[1743249519886,0.00552001,82276.0,82275.0,0.9692419]
[1743249520485,0.00018192,82284.0,82283.0,0.1215901]
[1743249520688,0.00094192,82284.0,82283.0,0.4831101]
[1743249520979,0.00094192,82284.0,82283.0,1.3437101]
[1743249521784,0.12753052,82284.0,82283.0,1.3437101]
[1743249521979,0.13153052,82284.0,82283.0,1.3437101]
[1743249522483,0.62503052,82284.0,82283.0,0.00072]
[1743249522779,0.62503052,82284.0,82283.0,0.4823901]
[1743249522984,0.88043052,82284.0,82283.0,0.4831101]
[1743249524686,0.88043052,82284.0,82283.0,0.00072]
[1743249524981,0.87143052,82284.0,82283.0,0.1255901]
[1743249525681,0.87143052,82284.0,82283.0,0.1262301]
[1743249525877,0.74984192,82284.0,82283.0,0.14208761]
[1743249526077,0.74984192,82284.0,82283.0,0.1242301]
[1743249526471,0.74984192,82284.0,82283.0,0.4850301]
[1743249526681,0.87143052,82284.0,82283.0,0.4850301]
[1743249526873,0.87143052,82284.0,82283.0,0.7405301]
[1743249527076,0.74984192,82284.0,82283.0,0.7405301]
[1743249527273,0.87143052,82284.0,82283.0,0.7385301]
[1743249527692,0.49444192,82284.0,82283.0,0.7385301]
[1743249528191,0.49444192,82284.0,82283.0,0.7405301]
[1743249529190,0.00094192,82284.0,82283.0,0.7405301]
[1743249529488,0.00018192,82284.0,82283.0,0.7425301]
[1743249529691,0.00106192,82284.0,82283.0,0.7405301]
[1743249529895,0.00106192,82284.0,82283.0,0.7425301]
[1743249531576,0.00106192,82284.0,82283.0,0.8917301]
[1743249532290,0.14276621,82300.0,82291.0,0.1215783]
[1743249532489,0.0607841,82298.0,82291.0,0.4830983]
[1743249532682,0.1215699,82297.0,82291.0,0.4830983]
[1743249532995,0.01528666,82294.0,82291.0,0.4830983]
[1743249533182,0.262,82293.0,82291.0,0.4830983]
[1743249533376,0.00112,82292.0,82291.0,0.4830983]
[1743249533582,0.26302,82292.0,82291.0,0.7390983]
[1743249535179,0.26302,82292.0,82291.0,1.0998983]
[1743249535896,0.26302,82292.0,82291.0,1.1008983]
[1743249536593,0.26302,82292.0,82291.0,1.1018983]
[1743249536896,0.00112,82292.0,82291.0,1.1018983]
[1743249537085,0.0004,82292.0,82291.0,1.1018983]
[1743249537286,0.00112,82292.0,82291.0,1.1008983]
[1743249537485,0.24862,82292.0,82291.0,1.1018983]
[1743249540893,0.24862,82292.0,82291.0,0.4850983]
[1743249540894,0.3701968,82292.0,82291.0,0.4850983]
[1743249542397,0.3701968,82292.0,82291.0,0.36252]
[1743249542593,0.3701968,82292.0,82291.0,0.00272]
[1743249542815,0.3701968,82292.0,82291.0,0.002]
[1743249543890,0.3701968,82292.0,82291.0,0.001]
[1743249544788,0.1215975,82278.0,82277.0,0.2431894]
[1743249544989,0.1215975,82278.0,82277.0,0.2440294]
[1743249545491,0.1223175,82278.0,82277.0,0.2440294]
[1743249545893,0.13766415,82278.0,82277.0,0.2440294]
[1743249547293,0.13766415,82278.0,82277.0,0.2460294]
[1743249547498,0.13766415,82278.0,82277.0,0.124437]
[1743249547803,0.13766415,82278.0,82277.0,0.00484]
[1743249548304,0.13766415,82278.0,82277.0,0.1264389]
[1743249550602,0.13766415,82278.0,82277.0,0.00484]
[1743249552694,0.49846415,82278.0,82277.0,0.00484]
[1743249552894,0.49846415,82278.0,82277.0,0.1215989]
[1743249552895,0.55926305,82278.0,82277.0,0.1215989]
[1743249553303,0.55926305,82278.0,82277.0,0.1374081]
[1743249553496,0.55926305,82278.0,82277.0,0.15343345]
[1743249553997,0.55926305,82278.0,82277.0,0.15343338]
[1743249554190,0.43766555,82278.0,82277.0,0.15343338]
[1743249554397,0.37686665,82278.0,82277.0,0.15343338]
[1743249554602,0.01606665,82278.0,82277.0,0.51423338]
[1743249554795,0.01606665,82278.0,82277.0,1.01673338]
[1743249555309,0.13766415,82278.0,82277.0,1.01673338]
[1743249555600,0.01606665,82278.0,82277.0,1.01673338]
[1743249556398,0.14276621,82287.0,82286.0,0.1215856]
[1743249556604,0.14372622,82287.0,82286.0,0.49915473]
[1743249557307,0.14372622,82287.0,82286.0,1.02646008]
[1743249557605,0.00096001,82287.0,82286.0,1.02646008]
[1743249557799,0.00196001,82287.0,82286.0,1.02646008]
[1743249558007,0.00296001,82287.0,82286.0,1.02646008]
[1743249558400,0.00296001,82287.0,82286.0,1.01115473]
[1743249558598,0.002,82287.0,82286.0,1.01115473]
[1743249558904,0.00196001,82287.0,82286.0,1.01115473]
[1743249559902,0.00096001,82287.0,82286.0,1.01115473]
[1743249562605,0.01528286,82290.0,82289.0,0.1215812]
[1743249562795,0.00096001,82290.0,82289.0,0.13835033]
[1743249563601,0.01642205,82290.0,82289.0,0.13835033]
[1743249564508,0.00096001,82290.0,82289.0,0.13835033]
[1743249565617,0.01585735,82298.0,82297.0,0.1215694]
[1743249565804,0.25004001,82298.0,82297.0,0.49905278]
[1743249566004,0.26549831,82298.0,82297.0,0.49905278]
[1743249566204,0.26549831,82298.0,82297.0,1.02205278]
[1743249566806,0.26749831,82298.0,82297.0,1.02205278]
[1743249567006,0.26749831,82298.0,82297.0,1.0373348]
[1743249567509,0.01849831,82298.0,82297.0,1.0373348]
[1743249567713,0.01949831,82298.0,82297.0,1.03746357]
[1743249568012,0.00396001,82298.0,82297.0,1.03746357]
[1743249568414,0.00396001,82298.0,82297.0,1.06309077]
[1743249569004,0.003,82298.0,82297.0,1.06309077]
[1743249569198,0.00396001,82298.0,82297.0,1.06309077]
[1743249569399,0.1252079,82298.0,82297.0,1.03746357]
[1743249569599,0.00396001,82298.0,82297.0,1.03746357]
[1743249569804,0.51006001,82298.0,82297.0,1.03746357]
[1743249570009,0.00396001,82298.0,82297.0,1.03746357]
[1743249571515,0.003,82298.0,82297.0,1.03746357]
[1743249571701,0.00396001,82298.0,82297.0,1.0376703]
[1743249572516,0.00396001,82298.0,82297.0,1.06327822]
[1743249574818,0.12552791,82298.0,82297.0,1.06327822]
[1743249575013,0.61432791,82298.0,82297.0,1.06327822]
[1743249575519,0.61432791,82298.0,82297.0,1.0376703]
[1743249577221,0.61432791,82298.0,82297.0,1.02238828]
[1743249577722,0.61432791,82298.0,82297.0,1.02198908]
[1743249578127,0.49276001,82298.0,82297.0,1.02198908]
[1743249578422,0.61432791,82298.0,82297.0,0.66118908]
[1743249578624,0.61432791,82298.0,82297.0,1.02198908]
[1743249579622,0.61432791,82298.0,82297.0,0.66118908]
[1743249579819,0.61432791,82298.0,82297.0,1.02198908]
[1743249580212,0.49276001,82298.0,82297.0,1.02198908]
[1743249580817,0.61432791,82298.0,82297.0,1.02198908]
[1743249581318,0.61432791,82298.0,82297.0,0.66118908]
[1743249581519,0.61432791,82298.0,82297.0,1.02198908]
[1743249585515,0.61432791,82298.0,82297.0,1.0064094]
[1743249586023,0.0004,82308.0,82307.0,0.1215546]
[1743249586328,0.00104,82308.0,82307.0,0.1227946]
[1743249586513,0.00172,82308.0,82307.0,0.1227946]
[1743249587325,0.25872,82308.0,82307.0,0.1227946]
[1743249592125,0.52132,82308.0,82307.0,0.1227946]
[1743249592731,0.6428731,82308.0,82307.0,0.1227946]
[1743249594230,0.6428731,82308.0,82307.0,0.4835946]
[1743249597027,0.52132,82308.0,82307.0,0.4835946]
[1743249597530,0.51332,82308.0,82307.0,0.4895946]
[1743249598431,0.51332,82308.0,82307.0,0.4885946]
[1743249598633,0.51332,82308.0,82307.0,0.50405452]
[1743249599239,0.51332,82308.0,82307.0,0.50305452]
[1743249599927,0.51332,82308.0,82307.0,0.50305864]
[1743249600121,0.25072,82308.0,82307.0,0.50305864]
[1743249600325,0.2462,82312.0,82311.0,0.1215487]
[1743249600523,0.2462,82312.0,82311.0,0.1231887]
[1743249600926,0.2462,82312.0,82311.0,0.3825887]
[1743249601536,0.2462,82312.0,82311.0,0.39917367]
[1743249601838,0.3677472,82312.0,82311.0,0.39917367]
[1743249602027,0.3677472,82312.0,82311.0,0.13977367]
[1743249602736,0.3677472,82312.0,82311.0,0.39917367]
[1743249603127,0.3677472,82312.0,82311.0,0.01922497]
[1743249603327,0.5161072,82312.0,82311.0,0.002]
[1743249603638,0.5161072,82312.0,82311.0,0.23594699]
[1743249603639,0.6163472,82312.0,82311.0,0.23594699]
[1743249603829,0.6163472,82312.0,82311.0,0.23758699]
[1743249604136,0.9771472,82312.0,82311.0,0.22197077]
[1743249604436,0.1215591,82304.0,82303.0,0.0001823]
[1743249604734,0.12267911,82304.0,82303.0,0.01695951]
[1743249604923,0.1215783,82291.0,82290.0,0.36196662]
[1743249605238,0.0008,82291.0,82290.0,0.86112057]
[1743249605535,0.5340591,82304.0,82303.0,0.1215605]
[1743249605738,0.5340591,82304.0,82303.0,0.4832005]
[1743249605739,0.5348991,82304.0,82303.0,0.4832005]
[1743249606535,0.5348991,82304.0,82303.0,0.1224005]
[1743249606735,0.5378991,82304.0,82303.0,0.1224005]
[1743249606936,0.5378991,82304.0,82303.0,0.6265005]
[1743249607431,1.0447991,82304.0,82303.0,0.6265005]
[1743249607937,0.92324,82304.0,82303.0,0.6265005]
[1743249609042,0.51074,82304.0,82303.0,0.6265005]
[1743249610133,0.51074,82304.0,82303.0,0.1224005]
[1743249611250,0.6322991,82304.0,82303.0,0.1224005]
[1743249611960,0.6322991,82304.0,82303.0,0.00084]
[1743249613454,0.1215664,82299.0,82298.0,0.3608]
[1743249613654,0.1222864,82299.0,82298.0,0.36148]
[1743249613845,0.2722864,82299.0,82298.0,0.36148]
[1743249614049,0.2722864,82299.0,82298.0,0.00068]
[1743249614248,0.1215709,82296.0,82294.0,0.1215726]
[1743249614564,0.1223309,82296.0,82294.0,0.1215726]
[1743249614757,0.1223309,82296.0,82292.0,0.1215759]
[1743249615056,0.1223309,82296.0,82293.0,0.1215747]
[1743249615948,0.4831309,82296.0,82291.0,0.1215775]
[1743249616155,0.4831309,82296.0,82283.0,0.06128062]
[1743249616355,0.1215886,82285.0,82284.0,0.1215871]
[1743249616559,0.1215886,82284.0,82283.0,0.00112612]
[1743249616756,0.8963086,82284.0,82283.0,0.00176612]
[1743249616960,0.8963086,82284.0,82283.0,0.12271622]
[1743249617250,0.8963086,82284.0,82283.0,0.00112612]
[1743249618448,0.91086051,82284.0,82283.0,0.00112612]
[1743249618655,0.53207191,82284.0,82283.0,0.12271622]
[1743249618850,0.65366051,82284.0,82283.0,0.12271622]
[1743249619247,0.65366051,82284.0,82283.0,0.64011622]
[1743249619447,0.65366051,82284.0,82283.0,0.64211622]
[1743249620251,0.53207191,82284.0,82283.0,0.64211622]
[1743249620651,0.40296051,82284.0,82283.0,0.64211622]
[1743249622966,0.01527191,82284.0,82283.0,0.64211622]
[1743249623265,0.0001823,82292.0,82287.0,0.0607918]
[1743249623457,0.0009023,82292.0,82291.0,0.1215783]
[1743249623660,0.0001823,82292.0,82291.0,0.1222183]
[1743249623860,0.0009023,82292.0,82291.0,0.8934183]
[1743249624065,0.1217591,82292.0,82291.0,0.8934183]
[1743249624765,0.1224791,82292.0,82291.0,0.77184]
[1743249624964,0.1224791,82292.0,82291.0,0.8934183]
[1743249625167,0.1224791,82292.0,82291.0,0.77184]
[1743249625766,0.1224791,82292.0,82291.0,0.00064]
[1743249625964,0.1215827,82288.0,82287.0,0.001]
[1743249626162,0.1215871,82285.0,82284.0,0.7719]
[1743249626363,0.1223871,82285.0,82284.0,0.51584]
[1743249626765,0.1223871,82285.0,82284.0,0.25794]
[1743249627365,0.1223871,82285.0,82284.0,0.51584]
[1743249627873,0.1213871,82285.0,82284.0,0.51584]
[1743249628074,0.1213871,82285.0,82284.0,0.00064]
[1743249628372,0.1203871,82285.0,82284.0,0.00064]
[1743249628761,0.1203871,82285.0,82284.0,0.00264]
[1743249628965,0.1203871,82285.0,82284.0,0.00464]
[1743249629765,0.1203871,82285.0,82284.0,0.004]
[1743249630773,0.1203871,82285.0,82284.0,0.26476]
[1743249631264,0.1203871,82285.0,82284.0,0.52656]
[1743249632273,0.1203871,82285.0,82284.0,0.88736]
[1743249632576,0.1203871,82285.0,82284.0,1.0089486]
[1743249632766,0.1203871,82285.0,82284.0,0.88736]
[1743249634076,0.1203871,82285.0,82284.0,0.36556]
[1743249634680,0.6205871,82285.0,82284.0,0.87676]
[1743249634864,0.6205871,82285.0,82284.0,0.51596]
[1743249635179,0.6205871,82285.0,82284.0,0.87676]
[1743249637378,0.6205871,82285.0,82284.0,0.00476]
[1743249637581,0.6205871,82285.0,82284.0,0.004]
[1743249639879,0.72743709,82285.0,82284.0,0.004]
[1743249640079,0.0607967,82281.0,82277.0,0.507]
[1743249640283,0.1215975,82278.0,82277.0,0.50764]
[1743249640481,0.1223175,82278.0,82277.0,0.00064]
[1743249640677,0.1216004,82276.0,82275.0,0.0001823]
[1743249640881,0.13153965,82276.0,82275.0,0.0001823]
[1743249641083,0.1216108,82269.0,82268.0,0.7661]
[1743249641378,0.1213308,82269.0,82268.0,0.50548]
[1743249641579,0.1213308,82269.0,82268.0,0.00068]
[1743249641778,0.1216255,82259.0,82258.0,0.3608]
[1743249641971,0.1223455,82259.0,82258.0,0.483067]
[1743249642176,0.13579249,82259.0,82258.0,0.36144]
[1743249642371,0.13279249,82259.0,82258.0,0.36144]
[1743249642582,0.63419249,82259.0,82258.0,0.36144]
[1743249643088,0.00172,82259.0,82258.0,0.483067]
[1743249643387,0.01534686,82259.0,82258.0,0.483067]
[1743249643582,0.1226255,82259.0,82258.0,0.483067]
[1743249643781,0.1236255,82259.0,82258.0,0.483067]
[1743249644178,0.1243455,82259.0,82258.0,0.483067]
[1743249644573,0.13794477,82259.0,82258.0,0.36144]
[1743249644786,0.37904477,82259.0,82258.0,0.36144]
[1743249645273,0.37904477,82259.0,82258.0,0.483067]
[1743249645674,0.37804477,82259.0,82258.0,0.483067]
[1743249646482,0.13694477,82259.0,82258.0,0.483067]
[1743249646679,0.13694477,82259.0,82258.0,0.723267]
[1743249646680,0.00072,82259.0,82258.0,0.723267]
[1743249647085,0.22845919,82271.0,82266.0,0.1216152]
[1743249647277,0.22845919,82271.0,82266.0,0.4830552]
[1743249647278,0.10779229,82267.0,82266.0,0.4830552]
[1743249647879,0.10703229,82267.0,82266.0,0.7232552]
[1743249648080,0.10975229,82267.0,82266.0,0.7232552]
[1743249648582,0.10903229,82267.0,82266.0,0.7373092]
[1743249649392,0.10983229,82267.0,82266.0,0.7373092]
[1743249649583,0.10903229,82267.0,82266.0,0.7373092]
[1743249649783,0.10975229,82267.0,82266.0,0.7373092]
[1743249650287,0.10775229,82267.0,82266.0,0.7373092]
[1743249650482,0.11175229,82267.0,82266.0,0.7373092]
[1743249650682,0.11175229,82267.0,82266.0,0.7232552]
[1743249651190,0.23264599,82267.0,82266.0,0.7232552]
[1743249651489,0.126516,82267.0,82266.0,0.7232552]
[1743249651685,0.124516,82267.0,82266.0,0.7232552]
[1743249652281,0.122516,82267.0,82266.0,0.7232552]
[1743249652485,0.122516,82267.0,82266.0,0.7242552]
[1743249652890,0.122516,82267.0,82266.0,0.7232552]
[1743249653090,0.121796,82267.0,82266.0,0.7242552]
[1743249653389,0.122516,82267.0,82266.0,0.60264]
[1743249653991,0.122516,82267.0,82266.0,0.00164]
[1743249654184,0.869316,82267.0,82266.0,0.001]
[1743249654984,0.872316,82267.0,82266.0,0.001]
[1743249655380,0.628316,82267.0,82266.0,0.1216152]
[1743249655584,0.1206167,82265.0,82264.0,0.0608084]
[1743249655779,0.1213367,82265.0,82264.0,0.0614484]
[1743249656380,0.1213367,82265.0,82264.0,0.00064]
[1743249656584,0.1213367,82265.0,82264.0,0.1222582]
[1743249656986,0.1233367,82265.0,82264.0,0.1222582]
[1743249657388,0.1263367,82265.0,82264.0,0.1222582]
[1743249658085,0.1263367,82265.0,82264.0,0.3713582]
[1743249659395,0.1243367,82265.0,82264.0,0.3713582]
[1743249659594,0.1253367,82265.0,82264.0,0.3713582]
[1743249659789,0.1233367,82265.0,82264.0,0.3713582]
[1743249659990,0.1223367,82265.0,82264.0,0.3713582]
[1743249660186,0.1233367,82265.0,82264.0,0.24974]
[1743249660697,0.1233367,82265.0,82264.0,0.00064]
[1743249660895,0.6318367,82265.0,82264.0,0.00064]
[1743249663791,0.1216359,82252.0,82251.0,0.00048631]
[1743249663988,0.1216359,82252.0,82251.0,0.00112631]
[1743249663989,0.1224359,82252.0,82251.0,0.00112631]
[1743249664203,0.1224359,82252.0,82251.0,0.00048631]
[1743249664603,0.6291359,82252.0,82251.0,0.00048631]
[1743249665403,0.0608219,82247.0,82240.0,0.3608]
[1743249665603,0.1216522,82241.0,82240.0,0.00084]
[1743249665901,0.1223722,82241.0,82240.0,0.00084]
[1743249666697,0.3635722,82241.0,82240.0,0.1224936]
[1743249666899,0.00072,82241.0,82240.0,0.1224936]
[1743249667098,0.14772,82254.0,82248.0,0.1216418]
[1743249667302,0.0009023,82249.0,82248.0,0.4830818]
[1743249667694,0.0001823,82249.0,82248.0,0.49739087]
[1743249667889,0.0001823,82249.0,82248.0,1.02429087]
[1743249668197,0.00957925,82276.0,82267.0,0.1216137]
[1743249668396,0.14348621,82268.0,82267.0,0.1223337]
[1743249668998,0.27923966,82268.0,82267.0,0.52762]
[1743249669313,0.27923966,82268.0,82267.0,0.00072]
[1743249669498,0.1216241,82260.0,82259.0,0.0001823]
[1743249669701,0.1216241,82260.0,82259.0,0.2642223]
[1743249669898,0.1223441,82260.0,82259.0,0.2642223]
[1743249670305,0.9971441,82260.0,82259.0,0.0008223]
[1743249670605,0.9971441,82260.0,82242.0,0.37116567]
[1743249670606,0.1216389,82250.0,82242.0,0.37116567]
[1743249670908,0.1216477,82244.0,82243.0,0.4954]
[1743249671112,0.1224077,82244.0,82243.0,0.49604]
[1743249671707,0.3712077,82244.0,82243.0,0.49604]
[1743249672707,0.0001823,82252.0,82251.0,0.1216374]
[1743249672903,0.0008223,82252.0,82251.0,0.4831974]
[1743249673301,0.0008223,82252.0,82251.0,0.9896974]
[1743249673708,0.1224582,82252.0,82251.0,0.9896974]
[1743249675119,0.22944422,82252.0,82251.0,0.9896974]
[1743249676313,0.22944422,82252.0,82251.0,0.86806]
[1743249676614,0.22944422,82252.0,82251.0,0.36156]
[1743249676816,0.47434422,82252.0,82251.0,0.00076]
[1743249677117,0.1216463,82245.0,82244.0,0.5088]
[1743249677313,0.1216463,82245.0,82244.0,0.50956]
[1743249677514,0.1224063,82245.0,82244.0,0.50956]
[1743249678014,0.6223063,82245.0,82244.0,0.50956]
[1743249678218,0.6223063,82245.0,82244.0,0.00076]
[1743249679015,0.1224063,82245.0,82244.0,0.1224077]
[1743249679215,0.1216463,82245.0,82244.0,0.1224077]
[1743249679413,0.1224463,82245.0,82244.0,0.8960077]
[1743249679611,0.0008,82245.0,82244.0,0.8960077]
[1743249679821,0.1824671,82248.0,82247.0,0.1216397]
[1743249680018,0.1824671,82248.0,82247.0,0.1224397]
[1743249680213,0.0001823,82252.0,82247.0,0.0008]
[1743249680420,0.0009423,82252.0,82251.0,0.1216374]
[1743249680711,0.1225782,82252.0,82251.0,0.1224374]
[1743249680910,0.1218182,82252.0,82251.0,0.6287374]
[1743249681118,0.0001823,82252.0,82251.0,0.6287374]
[1743249682314,0.1218182,82252.0,82251.0,0.6287374]
[1743249683018,0.0001823,82252.0,82251.0,0.6287374]
[1743249683615,0.1218182,82252.0,82251.0,0.6287374]
[1743249685724,0.1218182,82252.0,82251.0,0.6307374]
[1743249685926,0.1218182,82252.0,82251.0,0.7807374]
[1743249686121,0.06556,82268.0,82267.0,0.1216137]
[1743249686320,0.06624,82268.0,82267.0,0.4824137]
[1743249686621,0.06624,82268.0,82267.0,0.4831737]
[1743249687024,0.7122529,82268.0,82267.0,0.36156]
[1743249687213,0.7142529,82268.0,82267.0,0.36156]
[1743249687418,0.7162529,82268.0,82267.0,0.36156]
[1743249687618,0.6993129,82268.0,82267.0,0.36156]
[1743249688528,0.6993129,82268.0,82267.0,0.4831737]
[1743249688713,0.6506929,82268.0,82267.0,0.4831737]
[1743249688915,0.52908,82268.0,82267.0,0.4831737]
[1743249689228,0.00468,82268.0,82267.0,0.4831737]
[1743249689423,0.50418,82268.0,82267.0,0.7321737]
[1743249690323,0.6257922,82268.0,82267.0,0.7321737]
[1743249690526,0.6237922,82268.0,82267.0,0.7321737]
[1743249690726,0.6257922,82268.0,82267.0,0.7321737]
[1743249690919,0.6257922,82268.0,82267.0,0.3713737]
[1743249691126,0.6257922,82268.0,82267.0,0.7321737]
[1743249691325,0.50418,82268.0,82267.0,0.7321737]
[1743249691729,0.00468,82268.0,82267.0,0.7321737]
[1743249691921,0.004,82268.0,82267.0,0.7321737]
[1743249693631,0.1256122,82268.0,82267.0,0.7321737]
[1743249694031,0.1262522,82268.0,82267.0,0.61056]
[1743249694522,0.1262522,82268.0,82267.0,0.36156]
[1743249694833,0.1216241,82260.0,82259.0,0.0001823]
[1743249695032,0.1223441,82260.0,82259.0,0.0009023]
[1743249695223,0.1216241,82260.0,82259.0,0.0009023]
[1743249695528,0.1224241,82260.0,82259.0,0.0009023]
[1743249695725,0.6280241,82260.0,82259.0,0.0009023]
[1743249696333,0.6280241,82260.0,82259.0,0.0001823]
[1743249697235,0.64745452,82260.0,82259.0,0.0001823]
[1743249697830,0.64945452,82260.0,82259.0,0.0001823]
[1743249698135,0.1216344,82253.0,82252.0,0.29074196]
[1743249698438,0.6304744,82253.0,82252.0,0.29138196]
[1743249698641,0.1216418,82248.0,82247.0,0.36196662]
[1743249698830,0.12252181,82248.0,82247.0,0.36264662]
[1743249699534,0.37482181,82248.0,82247.0,0.36264662]
[1743249699733,0.39425223,82248.0,82247.0,0.36264662]
[1743249699939,0.39425223,82248.0,82247.0,0.00168]
[1743249700125,0.39425223,82248.0,82247.0,0.001]
[1743249700528,0.1206536,82240.0,82239.0,0.0001823]
[1743249700728,0.12161361,82240.0,82239.0,0.0010623]
[1743249700929,0.12908685,82240.0,82239.0,0.0010623]
[1743249701431,0.63468685,82240.0,82239.0,0.0010623]
[1743249702429,0.63468685,82240.0,82239.0,0.0040623]
[1743249702832,0.63468685,82240.0,82239.0,0.2467623]
[1743249703033,0.64870424,82240.0,82239.0,0.2467623]
[1743249703234,0.641231,82240.0,82239.0,0.2467623]
[1743249703839,0.135631,82240.0,82239.0,0.6183174]
[1743249704035,0.13467099,82240.0,82239.0,0.6183174]
[1743249704230,0.13559099,82240.0,82239.0,0.6183174]
[1743249704430,0.13559099,82240.0,82239.0,0.4966623]
[1743249704832,0.65279099,82240.0,82239.0,0.6183174]
[1743249705130,0.13559099,82240.0,82239.0,0.6183174]
[1743249706544,0.13559099,82240.0,82239.0,0.4966623]
[1743249706842,0.13559099,82240.0,82239.0,0.6183174]
[1743249707943,0.13559099,82240.0,82239.0,0.4966623]
[1743249710638,0.13559099,82240.0,82239.0,0.6183174]
[1743249711040,0.13559099,82240.0,82239.0,0.4966623]
[1743249711241,0.13559099,82240.0,82239.0,0.8574623]
[1743249714251,0.13559099,82240.0,82239.0,0.4966623]
[1743249714436,0.13559099,82240.0,82239.0,0.8574623]
[1743249714641,0.13559099,82240.0,82239.0,0.4966623]
[1743249716551,0.13559099,82240.0,82239.0,0.6183174]
[1743249717653,0.01493739,82240.0,82239.0,0.6183174]
[1743249717952,0.1247931,82241.0,82240.0,0.1216536]
[1743249718144,0.1247931,82241.0,82240.0,0.8890336]
[1743249718853,0.13927657,82241.0,82240.0,0.8890336]
[1743249719456,0.13927657,82241.0,82240.0,0.8910336]
[1743249719746,0.40457657,82241.0,82240.0,0.8910336]
[1743249720356,0.00402001,82241.0,82240.0,0.8910336]
[1743249720654,0.00314,82241.0,82240.0,0.8910336]
[1743249720859,0.0059,82245.0,82240.0,0.8910336]
[1743249720860,0.17858258,82262.0,82246.0,0.0608221]
[1743249721152,0.10790494,82253.0,82252.0,0.4824359]
[1743249721354,0.10790494,82253.0,82252.0,0.4830759]
[1743249721559,0.12182828,82253.0,82252.0,1.2118359]
[1743249721751,0.12090828,82253.0,82252.0,1.2118359]
[1743249721957,0.14276621,82257.0,82255.0,0.1216315]
[1743249722259,0.17858258,82262.0,82261.0,0.1216226]
[1743249722450,1.3917,82274.0,82266.0,0.1216152]
[1743249722451,0.883,82274.0,82266.0,0.1216152]
[1743249722759,0.21401778,82267.0,82266.0,0.1222552]
[1743249722954,0.21337778,82267.0,82266.0,0.1222552]
[1743249723151,0.28329676,82282.0,82275.0,0.1216019]
[1743249723359,0.28329676,82282.0,82281.0,0.121593]
[1743249723555,0.40552836,82282.0,82281.0,0.122273]
[1743249723755,0.40624836,82282.0,82281.0,0.122273]
[1743249723956,0.00072,82282.0,82281.0,0.122273]
[1743249724156,0.00072,82282.0,82281.0,0.373973]
[1743249724353,0.0001823,82284.0,82282.0,0.1215901]
[1743249724549,0.0008223,82284.0,82283.0,0.1215901]
[1743249724755,0.1224109,82284.0,82283.0,0.6231701]
[1743249724955,0.13612006,82284.0,82283.0,0.9839701]
[1743249725356,0.0008223,82284.0,82283.0,0.9839701]
[1743249725552,0.1324109,82284.0,82283.0,0.9839701]
[1743249725761,0.0108223,82284.0,82283.0,0.9839701]
[1743249725962,0.0101823,82284.0,82283.0,0.9839701]
[1743249726560,0.0108223,82284.0,82283.0,0.9839701]
[1743249726763,0.0101823,82284.0,82283.0,0.99766109]
[1743249726953,0.0051823,82284.0,82283.0,0.99766109]
[1743249727159,0.0101823,82284.0,82283.0,0.99766109]
[1743249727963,0.0081823,82284.0,82283.0,0.9839701]
[1743249728366,0.0088623,82284.0,82283.0,0.9839701]
[1743249728554,0.0058623,82284.0,82283.0,0.9839701]
[1743249728861,0.0041823,82284.0,82283.0,0.9839701]
[1743249729057,0.5099823,82284.0,82283.0,0.9839701]
[1743249729258,0.5106223,82284.0,82283.0,0.9839701]
[1743249729458,0.5076223,82284.0,82283.0,0.9839701]
[1743249729660,0.5086223,82284.0,82283.0,0.9839701]
[1743249729856,0.6302109,82284.0,82283.0,0.9839701]
[1743249730053,0.0028223,82284.0,82283.0,0.9839701]
[1743249730377,0.0021823,82284.0,82283.0,0.9839701]
[1743249730557,0.5086223,82284.0,82283.0,0.9839701]
[1743249730757,0.0028223,82284.0,82283.0,0.9839701]
[1743249730955,0.0021823,82284.0,82283.0,0.9839701]
[1743249733762,0.0021823,82284.0,82283.0,0.99800997]
[1743249734558,0.3242827,82300.0,82283.0,0.99800997]
[1743249734559,0.3608,82330.0,82307.0,0.1215546]
[1743249734864,0.2457,82320.0,82319.0,0.1215369]